[Event "2026 European Womens Championship"]
[Site "Batumi, GE"]
[Date "2026.05.27"]
[Round "3"]
[White "Antova, Gabriela"]
[Black "Socko, Monika"]
[Result "1/2-1/2"]
[Board "5"]
[TimeControl "5400+30"]
[WhiteFideId "2915235"]
[BlackFideId "1106619"]
[WhiteElo "2203"]
[BlackElo "2355"]
[WhiteTitle "WGM"]
[BlackTitle "GM"]
[WhiteClock "0:02:58"]
[BlackClock "0:06:13"]
[Variant "Standard"]

1. e4 {[%clk 1:30:48]}  c6 {[%clk 1:30:52]} 2. d4 {[%clk 1:30:59]}  d5 {[%clk 1:31:16]} 3. f3 {[%clk 1:31:19]}  Qb6 {[%clk 1:30:23]}
4. Nc3 {[%clk 1:29:18]}  e5 {[%clk 1:28:58]} 5. dxe5 {[%clk 1:26:47]}  Bc5 {[%clk 1:21:56]} 6. Na4 {[%clk 1:15:02]}  Qa5+ {[%clk 1:20:49]}
7. c3 {[%clk 1:13:27]}  Bxg1 {[%clk 1:20:52]} 8. Rxg1 {[%clk 1:10:26]}  dxe4 {[%clk 1:18:54]} 9. Qd4 {[%clk 1:01:43]}  Ne7 {[%clk 1:03:05]}
10. Bg5 {[%clk 0:51:14]}  Nd7 {[%clk 0:57:41]} 11. Qxe4 {[%clk 0:33:33]}  Qxe5 {[%clk 0:41:11]} 12. Qxe5 {[%clk 0:31:19]}  Nxe5 {[%clk 0:41:36]}
13. O-O-O {[%clk 0:30:29]}  f6 {[%clk 0:42:02]} 14. Be3 {[%clk 0:26:46]}  Nd5 {[%clk 0:40:09]} 15. Bd4 {[%clk 0:26:23]}  Kf7 {[%clk 0:33:37]}
16. Bxe5 {[%clk 0:21:05]}  fxe5 {[%clk 0:34:03]} 17. Nc5 {[%clk 0:20:46]}  b6 {[%clk 0:29:47]} 18. Ne4 {[%clk 0:19:11]}  Ke7 {[%clk 0:26:04]}
19. Bd3 {[%clk 0:18:09]}  Be6 {[%clk 0:25:06]} 20. Ng5 {[%clk 0:14:07]}  h6 {[%clk 0:24:00]} 21. Nxe6 {[%clk 0:13:02]}  Kxe6 {[%clk 0:24:26]}
22. Rge1 {[%clk 0:12:46]}  Rad8 {[%clk 0:22:05]} 23. g3 {[%clk 0:11:31]}  g5 {[%clk 0:20:26]} 24. Rd2 {[%clk 0:09:47]}  Rhf8 {[%clk 0:13:04]}
25. Be4 {[%clk 0:05:17]}  Rd6 {[%clk 0:12:26]} 26. Rde2 {[%clk 0:04:16]}  b5 {[%clk 0:09:26]} 27. a4 {[%clk 0:02:54]}  bxa4 {[%clk 0:08:49]}
28. Bc2 {[%clk 0:02:56]}  Rxf3 {[%clk 0:07:49]} 29. Rxe5+ {[%clk 0:03:18]}  Kf6 {[%clk 0:07:41]} 30. Bxa4 {[%clk 0:03:26]}  Rf2 {[%clk 0:07:20]}
31. R1e2 {[%clk 0:02:58]}  Rxe2 {[%clk 0:06:13]} 1/2-1/2

[Event "2026 European Womens Championship"]
[Site "Batumi, GE"]
[Date "2026.05.27"]
[Round "3"]
[White "Rudzinska, Michalina"]
[Black "Kazarian, Anna-Maja"]
[Result "0-1"]
[Board "6"]
[TimeControl "5400+30"]
[WhiteFideId "1172883"]
[BlackFideId "1033689"]
[WhiteElo "2200"]
[BlackElo "2317"]
[WhiteTitle "WGM"]
[BlackTitle "FM"]
[WhiteClock "0:01:15"]
[BlackClock "0:11:45"]
[Variant "Standard"]

1. e4 {[%clk 1:30:55]}  e6 {[%clk 1:30:56]} 2. d4 {[%clk 1:31:18]}  d5 {[%clk 1:31:22]} 3. e5 {[%clk 1:31:28]}  c5 {[%clk 1:31:42]}
4. c3 {[%clk 1:31:47]}  Nc6 {[%clk 1:31:37]} 5. Nf3 {[%clk 1:31:52]}  Bd7 {[%clk 1:32:02]} 6. Be2 {[%clk 1:31:29]}  Qb6 {[%clk 1:25:51]}
7. O-O {[%clk 1:31:02]}  Nh6 {[%clk 1:20:06]} 8. dxc5 {[%clk 1:18:25]}  Bxc5 {[%clk 1:20:29]} 9. b4 {[%clk 1:13:19]}  Be7 {[%clk 1:10:32]}
10. Na3 {[%clk 1:07:49]}  Ng4 {[%clk 1:04:51]} 11. Bf4 {[%clk 1:01:12]}  f6 {[%clk 0:42:53]} 12. exf6 {[%clk 0:55:51]}  Nxf6 {[%clk 0:43:16]}
13. Ne5 {[%clk 0:38:43]}  Nxe5 {[%clk 0:42:23]} 14. Bxe5 {[%clk 0:39:07]}  O-O {[%clk 0:42:10]} 15. Bf3 {[%clk 0:29:50]}  Rac8 {[%clk 0:34:31]}
16. Rb1 {[%clk 0:23:51]}  Bd6 {[%clk 0:31:31]} 17. Bxd6 {[%clk 0:22:41]}  Qxd6 {[%clk 0:31:55]} 18. c4 {[%clk 0:21:23]}  Qa6 {[%clk 0:30:32]}
19. Qc1 {[%clk 0:21:04]}  dxc4 {[%clk 0:27:19]} 20. b5 {[%clk 0:20:56]}  Qd6 {[%clk 0:27:05]} 21. Rd1 {[%clk 0:12:15]}  Qc5 {[%clk 0:20:49]}
22. Qe3 {[%clk 0:11:46]}  Qxe3 {[%clk 0:19:24]} 23. fxe3 {[%clk 0:12:11]}  c3 {[%clk 0:19:17]} 24. Rbc1 {[%clk 0:11:14]}  Rc7 {[%clk 0:17:12]}
25. Rd6 {[%clk 0:10:12]}  g5 {[%clk 0:12:50]} 26. b6 {[%clk 0:09:08]}  axb6 {[%clk 0:13:16]} 27. Rxb6 {[%clk 0:09:32]}  g4 {[%clk 0:13:05]}
28. Rxb7 {[%clk 0:05:10]}  Rxb7 {[%clk 0:13:06]} 29. Bxb7 {[%clk 0:05:33]}  Rb8 {[%clk 0:13:12]} 30. Ba6 {[%clk 0:01:17]}  Ra8 {[%clk 0:13:36]}
31. Bc4 {[%clk 0:01:18]}  Rxa3 {[%clk 0:13:59]} 32. Bb3 {[%clk 0:01:44]}  Ne4 {[%clk 0:13:30]} 33. Rd1 {[%clk 0:02:03]}  Nd2 {[%clk 0:13:06]}
34. Rc1 {[%clk 0:01:55]}  Nxb3 {[%clk 0:13:13]} 35. Rxc3 {[%clk 0:02:20]}  Rxa2 {[%clk 0:13:35]} 36. Rxb3 {[%clk 0:02:46]}  Bc6 {[%clk 0:14:00]}
37. Rb6 {[%clk 0:01:03]}  Rxg2+ {[%clk 0:11:47]} 38. Kh1 {[%clk 0:01:15]}  Bf3 {[%clk 0:11:45]} 0-1

[Event "2026 European Womens Championship"]
[Site "Batumi, GE"]
[Date "2026.05.27"]
[Round "3"]
[White "Schneider, Jana"]
[Black "Aydin, Gulenay"]
[Result "0-1"]
[Board "7"]
[TimeControl "5400+30"]
[WhiteFideId "12924997"]
[BlackFideId "34557431"]
[WhiteElo "2283"]
[BlackElo "2204"]
[WhiteTitle "WGM"]
[BlackTitle "WIM"]
[WhiteClock "0:00:55"]
[BlackClock "0:07:16"]
[Variant "Standard"]

1. e4 {[%clk 1:30:58]}  d6 {[%clk 1:30:15]} 2. d4 {[%clk 1:31:22]}  Nf6 {[%clk 1:30:34]} 3. Nc3 {[%clk 1:31:44]}  e5 {[%clk 1:30:57]}
4. Nf3 {[%clk 1:32:01]}  Nbd7 {[%clk 1:31:18]} 5. Be2 {[%clk 1:32:19]}  Be7 {[%clk 1:30:29]} 6. O-O {[%clk 1:31:57]}  O-O {[%clk 1:29:03]}
7. a4 {[%clk 1:32:04]}  c6 {[%clk 1:28:15]} 8. a5 {[%clk 1:31:51]}  exd4 {[%clk 1:27:28]} 9. Nxd4 {[%clk 1:31:54]}  Nc5 {[%clk 1:27:30]}
10. f3 {[%clk 1:31:39]}  d5 {[%clk 1:27:23]} 11. e5 {[%clk 1:24:19]}  Ne8 {[%clk 1:27:09]} 12. a6 {[%clk 1:11:43]}  f6 {[%clk 1:25:41]}
13. axb7 {[%clk 1:10:47]}  Bxb7 {[%clk 1:26:09]} 14. f4 {[%clk 1:10:20]}  Qc7 {[%clk 0:48:28]} 15. b4 {[%clk 1:00:38]}  fxe5 {[%clk 0:46:45]}
16. fxe5 {[%clk 0:56:14]}  Rxf1+ {[%clk 0:43:07]} 17. Bxf1 {[%clk 0:54:50]}  Nd7 {[%clk 0:42:59]} 18. e6 {[%clk 0:49:26]}  Nf8 {[%clk 0:42:21]}
19. b5 {[%clk 0:40:59]}  Bc5 {[%clk 0:24:06]} 20. bxc6 {[%clk 0:35:02]}  Bxc6 {[%clk 0:22:22]} 21. Kh1 {[%clk 0:21:08]}  Bxd4 {[%clk 0:19:43]}
22. Qxd4 {[%clk 0:21:32]}  Nxe6 {[%clk 0:20:07]} 23. Qh4 {[%clk 0:17:48]}  Nf6 {[%clk 0:18:57]} 24. Bd3 {[%clk 0:15:21]}  Rf8 {[%clk 0:11:45]}
25. Ba3 {[%clk 0:15:05]}  Re8 {[%clk 0:10:11]} 26. Rf1 {[%clk 0:15:01]}  Nf8 {[%clk 0:08:12]} 27. Ne2 {[%clk 0:13:34]}  Ng6 {[%clk 0:07:55]}
28. Bxg6 {[%clk 0:10:08]}  hxg6 {[%clk 0:08:23]} 29. Nf4 {[%clk 0:09:52]}  Bb5 {[%clk 0:08:19]} 30. Rc1 {[%clk 0:06:19]}  Qc3 {[%clk 0:08:24]}
31. Nxg6 {[%clk 0:00:36]}  Qxa3 {[%clk 0:08:10]} 32. Rb1 {[%clk 0:00:49]}  Qa2 {[%clk 0:07:04]} 33. Re1 {[%clk 0:00:34]}  Qxc2 {[%clk 0:06:35]}
34. Rxe8+ {[%clk 0:00:31]}  Bxe8 {[%clk 0:06:39]} 35. Ne7+ {[%clk 0:00:39]}  Kf7 {[%clk 0:07:04]} 36. Qe1 {[%clk 0:00:55]}  Qe4 {[%clk 0:07:16]} 0-1

[Event "2026 European Womens Championship"]
[Site "Batumi, GE"]
[Date "2026.05.27"]
[Round "3"]
[White "Poliakova, Varvara"]
[Black "Velikic, Adela"]
[Result "1-0"]
[Board "8"]
[TimeControl "5400+30"]
[WhiteFideId "13518313"]
[BlackFideId "913553"]
[WhiteElo "2108"]
[BlackElo "2277"]
[WhiteTitle "WFM"]
[BlackTitle "WIM"]
[WhiteClock "0:10:37"]
[BlackClock "0:01:00"]
[Variant "Standard"]

1. d4 {[%clk 1:30:05]}  Nf6 {[%clk 1:30:47]} 2. c4 {[%clk 1:29:35]}  e6 {[%clk 1:31:11]} 3. Nf3 {[%clk 1:29:41]}  d5 {[%clk 1:31:33]}
4. g3 {[%clk 1:28:41]}  Bb4+ {[%clk 1:31:54]} 5. Bd2 {[%clk 1:29:06]}  Be7 {[%clk 1:32:19]} 6. Bg2 {[%clk 1:28:11]}  O-O {[%clk 1:32:40]}
7. O-O {[%clk 1:27:22]}  c6 {[%clk 1:32:42]} 8. Qc2 {[%clk 1:26:47]}  Nbd7 {[%clk 1:33:00]} 9. Rd1 {[%clk 1:25:26]}  a5 {[%clk 1:33:18]}
10. Bf4 {[%clk 1:24:13]}  a4 {[%clk 1:33:33]} 11. a3 {[%clk 1:22:58]}  Ne4 {[%clk 1:33:48]} 12. h4 {[%clk 1:20:52]}  h6 {[%clk 1:29:20]}
13. Nc3 {[%clk 1:19:36]}  Nxc3 {[%clk 1:27:38]} 14. Qxc3 {[%clk 1:19:56]}  Nb6 {[%clk 1:26:41]} 15. Ne5 {[%clk 1:13:42]}  g5 {[%clk 0:48:11]}
16. Bd2 {[%clk 1:04:03]}  Kg7 {[%clk 0:44:36]} 17. h5 {[%clk 0:53:17]}  Bd7 {[%clk 0:21:07]} 18. c5 {[%clk 0:47:38]}  Nc8 {[%clk 0:21:28]}
19. e4 {[%clk 0:39:28]}  Be8 {[%clk 0:20:51]} 20. exd5 {[%clk 0:38:22]}  cxd5 {[%clk 0:20:57]} 21. Re1 {[%clk 0:34:26]}  Na7 {[%clk 0:19:18]}
22. Bh3 {[%clk 0:29:45]}  b6 {[%clk 0:17:05]} 23. cxb6 {[%clk 0:23:04]}  Qxb6 {[%clk 0:17:19]} 24. Qd3 {[%clk 0:21:34]}  Qb5 {[%clk 0:14:13]}
25. Qe3 {[%clk 0:20:28]}  Qb3 {[%clk 0:09:29]} 26. Nd3 {[%clk 0:16:47]}  Nb5 {[%clk 0:07:02]} 27. Rec1 {[%clk 0:15:07]}  Bf6 {[%clk 0:05:57]}
28. Bb4 {[%clk 0:12:52]}  Bxd4 {[%clk 0:05:18]} 29. Qd2 {[%clk 0:12:44]}  Rg8 {[%clk 0:02:33]} 30. Bg4 {[%clk 0:13:05]}  Rd8 {[%clk 0:00:40]}
31. Bd1 {[%clk 0:12:50]}  Qc4 {[%clk 0:00:52]} 32. Rxc4 {[%clk 0:12:28]}  dxc4 {[%clk 0:01:19]} 33. Ne5 {[%clk 0:11:36]}  c3 {[%clk 0:00:35]}
34. bxc3 {[%clk 0:11:30]}  Bb6 {[%clk 0:00:33]} 35. Qe2 {[%clk 0:11:22]}  Rd5 {[%clk 0:00:40]} 36. Bxa4 {[%clk 0:10:56]}  Nd4 {[%clk 0:00:41]}
37. Qa6 {[%clk 0:10:48]}  Rxe5 {[%clk 0:00:37]} 38. cxd4 {[%clk 0:10:33]}  Bxd4 {[%clk 0:01:00]} 39. Rd1 {[%clk 0:10:53]}  Rd5 {[%clk 0:01:00]}
40. Rxd4 {[%clk 0:10:37]} 1-0

[Event "2026 European Womens Championship"]
[Site "Batumi, GE"]
[Date "2026.05.27"]
[Round "3"]
[White "Mirzoeva, Elmira"]
[Black "Kobak, Polina"]
[Result "1-0"]
[Board "9"]
[TimeControl "5400+30"]
[WhiteFideId "4127951"]
[BlackFideId "24269727"]
[WhiteElo "2265"]
[BlackElo "1986"]
[WhiteTitle "WGM"]
[BlackTitle "WFM"]
[WhiteClock "0:16:20"]
[BlackClock "0:19:31"]
[Variant "Standard"]

1. e4 {[%clk 1:30:57]}  c5 {[%clk 1:30:30]} 2. d3 {[%clk 1:31:09]}  Nc6 {[%clk 1:29:52]} 3. g3 {[%clk 1:31:15]}  g6 {[%clk 1:28:47]}
4. Bg2 {[%clk 1:30:55]}  Bg7 {[%clk 1:29:10]} 5. f4 {[%clk 1:30:41]}  e6 {[%clk 1:26:52]} 6. Nf3 {[%clk 1:30:41]}  Nge7 {[%clk 1:27:05]}
7. O-O {[%clk 1:30:34]}  O-O {[%clk 1:25:11]} 8. c3 {[%clk 1:29:38]}  d6 {[%clk 1:19:18]} 9. Be3 {[%clk 1:29:23]}  a5 {[%clk 1:12:34]}
10. a4 {[%clk 1:24:00]}  b6 {[%clk 1:12:06]} 11. d4 {[%clk 1:18:41]}  Ba6 {[%clk 1:03:19]} 12. Re1 {[%clk 1:17:56]}  Rc8 {[%clk 0:59:09]}
13. Na3 {[%clk 1:04:54]}  cxd4 {[%clk 0:52:33]} 14. Nxd4 {[%clk 1:04:52]}  Nxd4 {[%clk 0:50:03]} 15. Bxd4 {[%clk 1:05:11]}  d5 {[%clk 0:37:55]}
16. e5 {[%clk 0:56:11]}  h5 {[%clk 0:33:24]} 17. Qb3 {[%clk 0:48:46]}  Rb8 {[%clk 0:30:18]} 18. Nb5 {[%clk 0:48:47]}  Qd7 {[%clk 0:25:54]}
19. Bf1 {[%clk 0:39:28]}  Rfd8 {[%clk 0:22:59]} 20. Rad1 {[%clk 0:30:54]}  Bf8 {[%clk 0:20:28]} 21. Bf2 {[%clk 0:28:48]}  Nc6 {[%clk 0:16:30]}
22. Qc2 {[%clk 0:21:32]}  Na7 {[%clk 0:13:32]} 23. c4 {[%clk 0:11:51]}  Bxb5 {[%clk 0:10:52]} 24. cxb5 {[%clk 0:08:52]}  Bb4 {[%clk 0:08:51]}
25. Re2 {[%clk 0:09:10]}  Rdc8 {[%clk 0:09:13]} 26. Qb3 {[%clk 0:09:34]}  Bc5 {[%clk 0:09:13]} 27. f5 {[%clk 0:09:06]}  gxf5 {[%clk 0:04:57]}
28. Qf3 {[%clk 0:09:17]}  Qe7 {[%clk 0:04:41]} 29. Qxh5 {[%clk 0:09:20]}  Kg7 {[%clk 0:04:58]} 30. Qf3 {[%clk 0:07:17]}  Rc7 {[%clk 0:03:34]}
31. Kh1 {[%clk 0:07:28]}  Bxf2 {[%clk 0:03:38]} 32. Rxf2 {[%clk 0:07:52]}  Rg8 {[%clk 0:02:35]} 33. Qe3 {[%clk 0:03:50]}  Nc8 {[%clk 0:02:34]}
34. g4 {[%clk 0:03:34]}  fxg4 {[%clk 0:02:12]} 35. Rf6 {[%clk 0:03:59]}  Kf8 {[%clk 0:02:07]} 36. Bd3 {[%clk 0:03:57]}  g3 {[%clk 0:01:03]}
37. hxg3 {[%clk 0:02:30]}  Ke8 {[%clk 0:01:24]} 38. Rdf1 {[%clk 0:02:19]}  Qc5 {[%clk 0:00:44]} 39. Qf4 {[%clk 0:00:50]}  Rg7 {[%clk 0:00:53]}
40. Qh6 {[%clk 0:00:38]}  Qf8 {[%clk 0:00:34]} 41. Rxe6+ {[%clk 0:20:46]}  fxe6 {[%clk 0:22:01]} 42. Rxf8+ {[%clk 0:20:40]}  Kxf8 {[%clk 0:22:27]}
43. Qf6+ {[%clk 0:18:16]}  Rgf7 {[%clk 0:19:07]} 44. Qh8+ {[%clk 0:16:26]}  Ke7 {[%clk 0:19:31]} 45. Bg6 {[%clk 0:16:20]} 1-0

[Event "2026 European Womens Championship"]
[Site "Batumi, GE"]
[Date "2026.05.27"]
[Round "3"]
[White "Tsolakidou, Stavroula"]
[Black "Toncheva, Nadya"]
[Result "0-1"]
[Board "10"]
[TimeControl "5400+30"]
[WhiteFideId "4264312"]
[BlackFideId "2924056"]
[WhiteElo "2455"]
[BlackElo "2320"]
[WhiteTitle "IM"]
[BlackTitle "WGM"]
[WhiteClock "0:01:52"]
[BlackClock "0:22:07"]
[Variant "Standard"]

1. e4 {[%clk 1:30:52]}  e6 {[%clk 1:30:53]} 2. d4 {[%clk 1:31:14]}  d5 {[%clk 1:31:19]} 3. Nc3 {[%clk 1:31:04]}  Nf6 {[%clk 1:31:42]}
4. e5 {[%clk 1:31:08]}  Nfd7 {[%clk 1:32:06]} 5. f4 {[%clk 1:31:18]}  c5 {[%clk 1:32:29]} 6. dxc5 {[%clk 1:30:27]}  Bxc5 {[%clk 1:31:14]}
7. Qg4 {[%clk 1:29:25]}  O-O {[%clk 1:29:16]} 8. Nf3 {[%clk 1:29:14]}  f5 {[%clk 1:22:26]} 9. Qh3 {[%clk 1:28:19]}  Re8 {[%clk 1:14:32]}
10. Bd3 {[%clk 1:24:12]}  Nf8 {[%clk 1:04:29]} 11. g4 {[%clk 1:18:56]}  Nc6 {[%clk 1:01:02]} 12. gxf5 {[%clk 1:13:33]}  exf5 {[%clk 1:01:07]}
13. a3 {[%clk 1:12:39]}  a6 {[%clk 0:54:17]} 14. Bd2 {[%clk 0:57:03]}  b5 {[%clk 0:53:03]} 15. Ne2 {[%clk 0:57:03]}  Qb6 {[%clk 0:50:47]}
16. Bxf5 {[%clk 0:46:49]}  Bf2+ {[%clk 0:49:44]} 17. Kf1 {[%clk 0:45:15]}  Bxf5 {[%clk 0:48:22]} 18. Qxf5 {[%clk 0:45:40]}  Ng6 {[%clk 0:45:55]}
19. Kg2 {[%clk 0:29:52]}  Ncxe5 {[%clk 0:30:45]} 20. fxe5 {[%clk 0:29:32]}  Rxe5 {[%clk 0:30:35]} 21. Qd3 {[%clk 0:27:14]}  Rf8 {[%clk 0:30:02]}
22. h4 {[%clk 0:25:33]}  Ref5 {[%clk 0:27:42]} 23. Bg5 {[%clk 0:06:29]}  Rxf3 {[%clk 0:26:14]} 24. Qxd5+ {[%clk 0:05:43]}  Kh8 {[%clk 0:24:26]}
25. Qxf3 {[%clk 0:05:33]}  Rxf3 {[%clk 0:24:50]} 26. Kxf3 {[%clk 0:06:00]}  Ne5+ {[%clk 0:20:55]} 27. Kg2 {[%clk 0:05:22]}  Qc6+ {[%clk 0:20:40]}
28. Kxf2 {[%clk 0:04:57]}  Qf3+ {[%clk 0:21:04]} 29. Kg1 {[%clk 0:05:19]}  Qxe2 {[%clk 0:21:27]} 30. Rh3 {[%clk 0:04:38]}  Qg4+ {[%clk 0:21:49]}
31. Kh2 {[%clk 0:04:48]}  Nf3+ {[%clk 0:22:14]} 32. Rxf3 {[%clk 0:05:15]}  Qxf3 {[%clk 0:22:39]} 33. Rg1 {[%clk 0:05:14]}  h6 {[%clk 0:22:14]}
34. Bd8 {[%clk 0:02:01]}  Qe2+ {[%clk 0:22:28]} 35. Rg2 {[%clk 0:02:04]}  Qe5+ {[%clk 0:22:51]} 36. Kh1 {[%clk 0:01:56]}  Qxb2 {[%clk 0:22:06]}
37. Be7 {[%clk 0:01:26]}  Qa1+ {[%clk 0:21:48]} 38. Rg1 {[%clk 0:01:52]}  Qc3 {[%clk 0:22:07]} 0-1

[Event "2026 European Womens Championship"]
[Site "Batumi, GE"]
[Date "2026.05.27"]
[Round "3"]
[White "Avramidou, Anastasia"]
[Black "Javakhishvili, Lela"]
[Result "1/2-1/2"]
[Board "11"]
[TimeControl "5400+30"]
[WhiteFideId "4239873"]
[BlackFideId "13601458"]
[WhiteElo "2320"]
[BlackElo "2442"]
[WhiteTitle "FM"]
[BlackTitle "IM"]
[WhiteClock "0:02:33"]
[BlackClock "0:05:53"]
[Variant "Standard"]

1. e4 {[%clk 1:30:57]}  c5 {[%clk 1:29:52]} 2. Nf3 {[%clk 1:31:14]}  e6 {[%clk 1:30:16]} 3. d4 {[%clk 1:31:30]}  cxd4 {[%clk 1:30:39]}
4. Nxd4 {[%clk 1:31:49]}  Nf6 {[%clk 1:30:30]} 5. Nc3 {[%clk 1:32:05]}  d6 {[%clk 1:30:42]} 6. g4 {[%clk 1:31:02]}  h6 {[%clk 1:31:05]}
7. Rg1 {[%clk 1:29:39]}  Nc6 {[%clk 1:30:12]} 8. h4 {[%clk 1:06:25]}  d5 {[%clk 1:29:12]} 9. exd5 {[%clk 1:04:58]}  Nxd5 {[%clk 1:29:34]}
10. Nxd5 {[%clk 1:03:38]}  exd5 {[%clk 1:29:49]} 11. Bb5 {[%clk 0:58:24]}  Bd7 {[%clk 1:29:12]} 12. Qe2+ {[%clk 0:56:08]}  Be7 {[%clk 1:28:23]}
13. Nf5 {[%clk 0:46:35]}  Bxf5 {[%clk 1:25:16]} 14. gxf5 {[%clk 0:46:46]}  Kf8 {[%clk 1:25:41]} 15. Be3 {[%clk 0:34:53]}  Qa5+ {[%clk 1:21:09]}
16. Kf1 {[%clk 0:30:02]}  Bf6 {[%clk 1:12:56]} 17. Rd1 {[%clk 0:22:39]}  a6 {[%clk 0:50:08]} 18. Bxc6 {[%clk 0:19:47]}  bxc6 {[%clk 0:50:22]}
19. c3 {[%clk 0:19:56]}  Qb5 {[%clk 0:42:04]} 20. Rg4 {[%clk 0:18:09]}  Re8 {[%clk 0:34:01]} 21. Qxb5 {[%clk 0:13:16]}  axb5 {[%clk 0:34:23]}
22. a4 {[%clk 0:13:42]}  Rb8 {[%clk 0:30:08]} 23. axb5 {[%clk 0:08:12]}  Rxb5 {[%clk 0:30:19]} 24. Ra1 {[%clk 0:08:38]}  Kg8 {[%clk 0:21:52]}
25. Ra6 {[%clk 0:08:41]}  Rxb2 {[%clk 0:19:03]} 26. Rxc6 {[%clk 0:09:05]}  Kh7 {[%clk 0:18:25]} 27. Rc7 {[%clk 0:06:00]}  h5 {[%clk 0:17:57]}
28. Ra4 {[%clk 0:05:34]}  Rf8 {[%clk 0:16:11]} 29. Raa7 {[%clk 0:03:39]}  Rc2 {[%clk 0:12:52]} 30. Bc5 {[%clk 0:03:06]}  Re8 {[%clk 0:09:18]}
31. Rxf7 {[%clk 0:03:30]}  Bxc3 {[%clk 0:09:29]} 32. Be3 {[%clk 0:02:35]}  Kh8 {[%clk 0:06:10]} 33. Rac7 {[%clk 0:01:55]}  d4 {[%clk 0:01:58]}
34. Bxd4 {[%clk 0:01:42]}  Rc1+ {[%clk 0:01:33]} 35. Kg2 {[%clk 0:02:10]}  Bxd4 {[%clk 0:01:48]} 36. Rxc1 {[%clk 0:02:35]}  Re2 {[%clk 0:02:03]}
37. Rf1 {[%clk 0:02:21]}  Re4 {[%clk 0:02:29]} 38. f3 {[%clk 0:01:30]}  Re2+ {[%clk 0:02:09]} 39. Kg3 {[%clk 0:01:58]}  Be5+ {[%clk 0:02:23]}
40. f4 {[%clk 0:02:23]}  Bf6 {[%clk 0:02:48]} 41. Rf3 {[%clk 0:01:16]}  Be7 {[%clk 0:01:57]} 42. f6 {[%clk 0:29:17]}  gxf6 {[%clk 0:30:01]}
43. Rd3 {[%clk 0:28:08]}  Kg8 {[%clk 0:30:05]} 44. Kf3 {[%clk 0:28:33]}  Re1 {[%clk 0:28:39]} 45. Rxe7 {[%clk 0:28:57]}  Rxe7 {[%clk 0:29:05]}
46. Rd5 {[%clk 0:29:24]}  Kg7 {[%clk 0:28:31]} 47. Rxh5 {[%clk 0:29:48]}  Re1 {[%clk 0:24:04]} 48. Rb5 {[%clk 0:27:27]}  Rh1 {[%clk 0:22:49]}
49. Kg4 {[%clk 0:26:17]}  Kg6 {[%clk 0:21:08]} 50. h5+ {[%clk 0:13:26]}  Kh6 {[%clk 0:21:11]} 51. Rb8 {[%clk 0:13:27]}  Kg7 {[%clk 0:19:38]}
52. Rb7+ {[%clk 0:13:30]}  Kf8 {[%clk 0:16:36]} 53. Ra7 {[%clk 0:07:52]}  Rh2 {[%clk 0:16:39]} 54. Ra3 {[%clk 0:08:12]}  Kg7 {[%clk 0:15:44]}
55. Rg3 {[%clk 0:08:33]}  Rh1 {[%clk 0:14:26]} 56. Rg2 {[%clk 0:08:56]}  Kf7 {[%clk 0:13:48]} 57. Rc2 {[%clk 0:06:52]}  Kg7 {[%clk 0:14:08]}
58. Rc3 {[%clk 0:06:53]}  Rh2 {[%clk 0:14:20]} 59. Rc7+ {[%clk 0:05:34]}  Kf8 {[%clk 0:14:45]} 60. Rc5 {[%clk 0:05:27]}  Kg7 {[%clk 0:14:40]}
61. Kf3 {[%clk 0:05:52]}  Rh1 {[%clk 0:13:40]} 62. Ke4 {[%clk 0:05:54]}  Kf8 {[%clk 0:12:46]} 63. Rc8+ {[%clk 0:03:38]}  Kg7 {[%clk 0:12:37]}
64. Rc7+ {[%clk 0:04:02]}  Kf8 {[%clk 0:12:54]} 65. Kf5 {[%clk 0:04:24]}  Rxh5+ {[%clk 0:13:18]} 66. Kg6 {[%clk 0:04:50]}  Rh1 {[%clk 0:08:01]}
67. f5 {[%clk 0:03:03]}  Rf1 {[%clk 0:06:30]} 68. Rc6 {[%clk 0:02:36]}  Rf2 {[%clk 0:05:41]} 69. Rxf6+ {[%clk 0:02:25]}  Kg8 {[%clk 0:06:07]}
70. Ra6 {[%clk 0:02:34]}  Rg2+ {[%clk 0:06:31]} 71. Kf6 {[%clk 0:02:58]}  Rf2 {[%clk 0:04:55]} 72. Ra8+ {[%clk 0:01:55]}  Kh7 {[%clk 0:05:23]}
73. Re8 {[%clk 0:02:17]}  Rf1 {[%clk 0:05:21]} 74. Re5 {[%clk 0:01:07]}  Kg8 {[%clk 0:05:00]} 75. Re4 {[%clk 0:01:00]}  Kf8 {[%clk 0:04:35]}
76. Rh4 {[%clk 0:01:16]}  Kg8 {[%clk 0:04:54]} 77. Rg4+ {[%clk 0:01:34]}  Kf8 {[%clk 0:05:11]} 78. Kg6 {[%clk 0:01:33]}  Kg8 {[%clk 0:04:03]}
79. Rg2 {[%clk 0:01:13]}  Rf3 {[%clk 0:04:08]} 80. Ra2 {[%clk 0:01:06]}  Rg3+ {[%clk 0:04:30]} 81. Kf6 {[%clk 0:01:31]}  Rf3 {[%clk 0:04:51]}
82. Ra8+ {[%clk 0:00:54]}  Kh7 {[%clk 0:05:20]} 83. Rf8 {[%clk 0:01:15]}  Ra3 {[%clk 0:04:56]} 84. Rf7+ {[%clk 0:01:23]}  Kg8 {[%clk 0:05:03]}
85. Re7 {[%clk 0:01:47]}  Rf3 {[%clk 0:05:13]} 86. Re4 {[%clk 0:01:37]}  Rf1 {[%clk 0:05:20]} 87. Ke6 {[%clk 0:02:01]}  Kf8 {[%clk 0:05:02]}
88. Rh4 {[%clk 0:01:05]}  Kg7 {[%clk 0:05:07]} 89. Rg4+ {[%clk 0:01:28]}  Kf8 {[%clk 0:05:35]} 90. Ra4 {[%clk 0:01:43]}  Kg7 {[%clk 0:05:02]}
91. Ra7+ {[%clk 0:02:03]}  Kf8 {[%clk 0:04:58]} 92. Ke5 {[%clk 0:02:07]}  Rf2 {[%clk 0:05:08]} 93. Ke6 {[%clk 0:02:31]}  Rf1 {[%clk 0:05:30]}
94. Ke5 {[%clk 0:02:12]}  Rf2 {[%clk 0:05:53]} 95. Ke6 {[%clk 0:02:33]} 1/2-1/2